{"text_format":"1","workbook":"xlsx","n_sheets":1,"sheets":["стр.1_5"],"not_rendered":{"charts":0,"images":0,"macros":0,"external_links":0,"defined_names":1,"comments":0,"pivot_tables":0},"unopened":[],"bounds":{"document_bytes":16777216,"sheet_cells":100000,"rows_first":2000,"rows_last":500,"rows_between":2000,"halvings":0,"cell_chars":16384,"cell_head_chars":4096},"cells_cut":0,"cells_raw":0,"read":"whole","date_system":"1900"}

{"sheet":"стр.1_5","index":0,"n_rows":161,"n_cols":164,"rows_kept":161,"cut":false,"hidden":false,"merged":[[65,0,65,48],[65,107,65,119],[65,49,65,54],[61,62,61,75],[62,107,62,119],[65,62,65,75],[65,91,65,106],[61,55,61,61],[61,120,61,132],[66,120,66,132],[61,0,61,48],[65,148,65,163],[62,148,62,163],[63,148,64,163],[65,133,65,147],[63,91,64,106],[65,55,65,61],[67,55,68,61],[67,76,68,90],[66,76,66,90],[62,76,62,90],[63,76,64,90],[66,55,66,61],[63,62,64,75],[53,148,53,163],[53,133,53,147],[57,133,57,147],[54,148,54,163],[57,148,57,163],[55,148,56,163],[54,133,54,147],[55,133,56,147],[58,148,58,163],[58,133,58,147],[59,107,59,119],[58,107,58,119],[55,120,56,132],[59,148,59,163],[59,133,59,147],[59,120,59,132],[58,120,58,132],[49,76,50,90],[60,107,60,119],[69,148,69,163],[67,133,68,147],[67,148,68,163],[60,148,60,163],[61,148,61,163],[69,107,69,119],[66,148,66,163],[57,107,57,119],[45,55,45,61],[46,76,46,90],[47,55,48,61],[47,120,48,132],[47,62,48,75],[46,55,46,61],[57,62,57,75],[55,76,56,90],[58,76,58,90],[58,62,58,75],[57,76,57,90],[53,62,53,75],[54,62,54,75],[55,62,56,75],[59,91,59,106],[63,133,64,147],[63,120,64,132],[61,133,61,147],[62,133,62,147],[61,91,61,106],[62,91,62,106],[61,107,61,119],[60,133,60,147],[60,120,60,132],[57,120,57,132],[53,120,53,132],[51,107,51,119],[53,107,53,119],[55,107,56,119],[54,91,54,106],[57,91,57,106],[44,120,44,132],[44,91,44,106],[44,76,44,90],[45,120,45,132],[51,91,51,106],[51,120,51,132],[47,91,48,106],[49,91,50,106],[49,107,50,119],[46,91,46,106],[52,55,52,61],[51,62,51,75],[51,76,51,90],[51,133,51,147],[41,29,41,134],[43,49,44,54],[43,0,44,48],[45,91,45,106],[45,133,45,147],[43,55,44,61],[45,148,45,163],[46,133,46,147],[47,133,48,147],[47,148,48,163],[49,62,50,75],[52,63,52,75],[51,148,51,163],[52,77,52,90],[45,107,45,119],[49,133,50,147],[35,148,35,163],[38,133,38,147],[40,148,40,163],[39,148,39,163],[38,148,38,163],[39,133,39,147],[35,133,35,147],[40,133,40,147],[39,120,39,132],[39,107,39,119],[43,148,44,163],[52,133,52,147],[49,120,50,132],[46,120,46,132],[49,148,50,163],[46,148,46,163],[52,149,52,163],[44,133,44,147],[35,120,35,132],[47,107,48,119],[46,107,46,119],[44,107,44,119],[40,120,40,132],[36,120,37,132],[36,107,37,119],[40,107,40,119],[38,120,38,132],[35,107,35,119],[8,49,8,132],[16,148,16,163],[40,91,40,106],[43,76,43,147],[16,49,16,54],[16,62,16,75],[23,148,24,163],[10,148,10,163],[17,148,17,163],[20,148,20,163],[27,148,28,163],[5,49,5,132],[15,49,15,54],[13,49,14,54],[15,91,15,106],[15,120,15,132],[14,91,14,106],[9,49,9,132],[15,62,15,75],[15,76,15,90],[33,120,33,132],[34,133,34,147],[34,120,34,132],[32,107,32,119],[32,120,32,132],[18,148,19,163],[20,133,20,147],[18,133,19,147],[33,133,33,147],[26,133,26,147],[38,107,38,119],[31,148,31,163],[36,148,37,163],[36,133,37,147],[34,148,34,163],[33,148,33,163],[31,133,31,147],[31,107,31,119],[33,107,33,119],[34,107,34,119],[16,133,16,147],[26,120,26,132],[21,148,21,163],[21,133,21,147],[22,148,22,163],[26,148,26,163],[21,120,21,132],[22,120,22,132],[16,120,16,132],[17,120,17,132],[18,120,19,132],[25,148,25,163],[23,120,24,132],[25,133,25,147],[22,133,22,147],[23,133,24,147],[29,120,29,132],[27,133,28,147],[30,120,30,132],[31,120,31,132],[27,120,28,132],[25,107,25,119],[25,120,25,132],[27,91,28,106],[27,62,28,75],[26,91,26,106],[17,91,17,106],[20,76,20,90],[25,91,25,106],[25,76,25,90],[26,62,26,75],[16,107,16,119],[16,76,16,90],[16,91,16,106],[18,76,19,90],[17,76,17,90],[16,0,16,48],[17,62,17,75],[17,107,17,119],[18,107,19,119],[0,1,0,146],[6,49,6,132],[1,1,1,146],[20,91,20,106],[18,0,18,48],[20,107,20,119],[14,133,14,147],[17,133,17,147],[19,0,19,48],[17,55,17,61],[9,148,9,163],[12,0,12,163],[15,0,15,48],[13,0,14,48],[14,120,14,132],[11,148,11,163],[13,148,14,163],[15,148,15,163],[13,76,13,147],[15,107,15,119],[26,76,26,90],[26,49,26,54],[16,55,16,61],[18,62,19,75],[23,76,24,90],[21,55,21,61],[18,49,19,54],[25,62,25,75],[25,55,25,61],[22,0,22,48],[21,49,21,54],[17,0,17,48],[23,0,23,48],[23,49,24,54],[24,0,24,48],[21,0,21,48],[22,49,22,54],[20,0,20,48],[20,49,20,54],[1,148,1,163],[13,62,14,75],[18,91,19,106],[17,49,17,54],[4,31,4,132],[15,55,15,61],[13,55,14,61],[18,55,19,61],[5,148,5,163],[6,148,6,163],[21,91,21,106],[23,55,24,61],[21,107,21,119],[22,55,22,61],[21,76,21,90],[22,91,22,106],[23,62,24,75],[22,107,22,119],[23,107,24,119],[2,148,2,163],[20,120,20,132],[22,62,22,75],[22,76,22,90],[21,62,21,75],[3,82,3,85],[14,76,14,90],[7,148,7,163],[15,133,15,147],[8,148,8,163],[39,91,39,106],[39,76,39,90],[34,62,34,75],[38,76,38,90],[38,91,38,106],[39,62,39,75],[36,62,37,75],[35,91,35,106],[34,76,34,90],[34,91,34,106],[20,55,20,61],[32,148,32,163],[30,148,30,163],[29,148,29,163],[30,133,30,147],[29,133,29,147],[32,133,32,147],[30,76,30,90],[20,62,20,75],[23,91,24,106],[30,91,30,106],[32,91,32,106],[33,91,33,106],[32,76,32,90],[31,76,31,90],[3,148,3,163],[4,148,4,163],[3,61,3,81],[14,107,14,119],[3,86,3,88],[36,91,37,106],[36,76,37,90],[38,62,38,75],[29,107,29,119],[35,76,35,90],[35,62,35,75],[33,76,33,90],[31,62,31,75],[32,62,32,75],[33,62,33,75],[27,49,28,54],[25,49,25,54],[35,49,35,54],[32,49,32,54],[27,107,28,119],[26,107,26,119],[30,107,30,119],[31,91,31,106],[29,91,29,106],[29,76,29,90],[54,0,54,48],[27,76,28,90],[27,55,28,61],[29,62,29,75],[30,62,30,75],[33,0,33,48],[34,0,34,48],[33,49,33,54],[32,0,32,48],[32,55,32,61],[38,55,38,61],[33,55,33,61],[35,55,35,61],[36,55,37,61],[34,55,34,61],[53,0,53,48],[53,49,53,54],[52,1,52,48],[51,55,51,61],[46,0,46,48],[38,0,38,48],[37,0,37,48],[36,0,36,48],[34,49,34,54],[36,49,37,54],[35,0,35,48],[39,0,39,48],[25,0,25,48],[30,55,30,61],[30,49,30,54],[31,0,31,48],[29,49,29,54],[29,55,29,61],[31,55,31,61],[31,49,31,54],[26,0,26,48],[29,0,29,48],[38,49,38,54],[26,55,26,61],[45,0,45,48],[39,49,39,54],[40,0,40,48],[40,49,40,54],[39,55,39,61],[30,0,30,48],[27,0,27,48],[49,0,49,48],[48,0,48,48],[40,62,40,75],[40,76,40,90],[45,62,45,75],[43,62,44,75],[45,76,45,90],[46,49,46,54],[49,55,50,61],[45,49,45,54],[28,0,28,48],[51,49,51,54],[51,0,51,48],[46,62,46,75],[40,55,40,61],[47,76,48,90],[47,0,47,48],[47,49,48,54],[49,49,50,54],[50,0,50,48],[54,49,54,54],[57,49,57,54],[57,55,57,61],[58,55,58,61],[55,49,56,54],[55,55,56,61],[67,91,68,106],[66,107,66,119],[73,107,73,119],[62,120,62,132],[69,120,69,132],[67,120,68,132],[65,120,65,132],[63,107,64,119],[67,107,68,119],[53,55,53,61],[54,76,54,90],[53,76,53,90],[54,120,54,132],[54,107,54,119],[53,91,53,106],[54,55,54,61],[69,62,69,75],[67,49,68,54],[61,76,61,90],[59,49,59,54],[62,55,62,61],[66,62,66,75],[60,62,60,75],[60,49,60,54],[61,49,61,54],[59,62,59,75],[57,0,57,48],[56,0,56,48],[55,0,55,48],[64,0,64,48],[58,0,58,48],[59,0,59,48],[58,49,58,54],[66,0,66,48],[68,0,68,48],[67,0,67,48],[74,0,74,48],[60,0,60,48],[69,0,69,48],[62,0,62,48],[72,0,73,48],[69,49,69,54],[74,107,74,119],[73,133,73,147],[74,62,74,75],[72,62,73,75],[78,76,78,90],[76,76,77,90],[75,62,75,75],[78,91,78,106],[73,91,73,106],[76,49,77,54],[76,55,77,61],[76,62,77,75],[78,62,78,75],[72,55,73,61],[74,49,74,54],[74,55,74,61],[60,76,60,90],[59,76,59,90],[74,76,74,90],[75,76,75,90],[69,76,69,90],[59,55,59,61],[65,76,65,90],[62,62,62,75],[69,55,69,61],[67,62,68,75],[60,55,60,61],[63,0,63,48],[66,49,66,54],[63,49,64,54],[72,49,73,54],[75,55,75,61],[75,49,75,54],[75,0,75,48],[62,49,62,54],[63,55,64,61],[79,107,79,119],[75,107,75,119],[74,120,74,132],[78,133,78,147],[78,0,78,48],[78,49,78,54],[78,55,78,61],[76,0,76,48],[77,0,77,48],[76,133,77,147],[66,133,66,147],[69,133,69,147],[76,148,77,163],[76,120,77,132],[76,107,77,119],[58,91,58,106],[76,91,77,106],[75,91,75,106],[72,148,73,163],[75,148,75,163],[73,120,73,132],[78,148,78,163],[78,120,78,132],[55,91,56,106],[60,91,60,106],[74,91,74,106],[66,91,66,106],[69,91,69,106],[72,76,72,147],[73,76,73,90],[79,0,79,48],[78,107,78,119],[79,62,79,75],[79,55,79,61],[79,49,79,54],[74,148,74,163],[75,120,75,132],[75,133,75,147],[74,133,74,147],[79,133,79,147],[80,0,80,48],[79,120,79,132],[84,49,84,54],[84,55,84,61],[84,62,84,75],[80,49,81,54],[83,49,83,54],[79,76,79,90],[79,91,79,106],[80,107,81,119],[82,55,82,61],[83,55,83,61],[79,148,79,163],[80,133,81,147],[82,107,82,119],[83,148,83,163],[83,120,83,132],[80,148,81,163],[83,133,83,147],[80,55,81,61],[85,0,85,48],[83,62,83,75],[86,0,86,48],[85,62,86,75],[92,0,92,48],[82,148,82,163],[82,133,82,147],[83,107,83,119],[82,120,82,132],[83,0,83,48],[81,0,81,48],[84,0,84,48],[82,0,82,48],[80,91,81,106],[82,91,82,106],[84,76,84,90],[80,62,81,75],[82,62,82,75],[82,49,82,54],[80,76,81,90],[93,0,93,48],[92,49,93,54],[92,55,93,61],[91,0,91,48],[89,0,89,48],[90,1,90,48],[88,49,88,54],[91,49,91,54],[91,55,91,61],[89,49,89,54],[89,55,89,61],[90,76,90,90],[88,62,88,75],[88,55,88,61],[89,62,89,75],[85,148,86,163],[85,120,86,132],[84,120,84,132],[84,107,84,119],[84,148,84,163],[87,49,87,54],[85,55,86,61],[85,49,86,54],[84,133,84,147],[85,133,86,147],[85,91,86,106],[85,107,86,119],[85,76,86,90],[80,120,81,132],[82,76,82,90],[83,91,83,106],[83,76,83,90],[84,91,84,106],[88,0,88,48],[87,0,87,48],[91,91,91,106],[90,92,90,106],[91,107,91,119],[87,62,87,75],[87,55,87,61],[90,63,90,75],[90,108,90,119],[88,107,88,119],[91,76,91,90],[88,76,88,90],[89,76,89,90],[87,76,87,90],[91,62,91,75],[87,133,87,147],[88,133,88,147],[89,120,89,132],[89,91,89,106],[90,121,90,132],[87,148,87,163],[88,148,88,163],[89,148,89,163],[90,148,90,163],[89,133,89,147],[90,134,90,147],[89,107,89,119],[88,120,88,132],[103,120,103,132],[94,91,94,106],[95,148,95,163],[94,148,94,163],[92,148,93,163],[91,148,91,163],[95,133,95,147],[95,120,95,132],[87,120,87,132],[88,91,88,106],[87,91,87,106],[87,107,87,119],[103,91,103,106],[94,133,94,147],[91,133,91,147],[92,120,93,132],[91,120,91,132],[103,133,103,147],[104,91,104,106],[105,133,106,147],[103,76,103,90],[97,107,97,119],[98,120,98,132],[97,91,97,106],[98,91,98,106],[102,107,102,119],[99,29,99,134],[98,49,98,54],[92,62,93,75],[92,133,93,147],[92,76,93,90],[92,91,93,106],[92,107,93,119],[98,107,98,119],[97,120,97,132],[94,120,94,132],[94,62,94,75],[95,107,95,119],[94,107,94,119],[95,91,95,106],[101,55,102,61],[98,133,98,147],[109,62,109,75],[95,55,95,61],[97,55,97,61],[97,76,97,90],[97,62,97,75],[98,55,98,61],[98,62,98,75],[98,76,98,90],[109,55,109,61],[95,62,95,75],[98,148,98,163],[97,133,97,147],[97,148,97,163],[104,49,104,54],[104,55,104,61],[104,62,104,75],[104,148,104,163],[104,120,104,132],[104,107,104,119],[104,133,104,147],[101,148,102,163],[101,76,101,147],[103,62,103,75],[103,148,103,163],[102,76,102,90],[102,120,102,132],[102,133,102,147],[102,91,102,106],[101,62,102,75],[103,107,103,119],[105,148,106,163],[107,55,108,61],[105,62,106,75],[107,120,108,132],[107,91,108,106],[105,55,106,61],[107,148,108,163],[107,76,108,90],[109,107,109,119],[111,107,111,119],[110,76,110,90],[97,0,97,48],[95,0,95,48],[95,49,95,54],[103,0,103,48],[101,49,102,54],[103,55,103,61],[104,0,104,48],[104,76,104,90],[105,76,106,90],[106,0,106,48],[95,76,95,90],[94,0,94,48],[94,76,94,90],[97,49,97,54],[98,0,98,48],[103,49,103,54],[94,55,94,61],[111,0,111,48],[111,49,111,54],[112,0,112,48],[107,0,107,48],[101,0,102,48],[94,49,94,54],[111,62,111,75],[109,148,109,163],[110,133,110,147],[110,120,110,132],[109,120,109,132],[110,148,110,163],[109,133,109,147],[111,91,111,106],[110,91,110,106],[109,91,109,106],[109,0,109,48],[109,49,109,54],[111,76,111,90],[111,148,111,163],[111,120,111,132],[111,133,111,147],[111,55,111,61],[110,55,110,61],[110,0,110,48],[110,49,110,54],[113,0,113,48],[112,49,112,54],[113,62,113,75],[112,91,112,106],[112,107,112,119],[113,55,113,61],[112,55,112,61],[112,76,112,90],[112,62,112,75],[113,120,113,132],[114,107,114,119],[113,91,113,106],[113,133,113,147],[112,120,112,132],[113,49,113,54],[108,0,108,48],[105,91,106,106],[105,107,106,119],[107,107,108,119],[114,148,114,163],[114,76,114,90],[114,91,114,106],[113,76,113,90],[113,148,113,163],[113,107,113,119],[112,133,112,147],[112,148,112,163],[110,107,110,119],[109,76,109,90],[105,0,105,48],[105,49,106,54],[107,62,108,75],[107,133,108,147],[105,120,106,132],[107,49,108,54],[115,49,115,54],[116,55,116,61],[116,49,116,54],[115,55,115,61],[116,76,116,90],[115,76,115,90],[120,0,120,48],[117,0,117,48],[121,0,121,48],[122,0,122,48],[119,0,119,48],[116,0,116,48],[118,0,118,48],[121,107,121,119],[119,133,119,147],[115,120,115,132],[115,148,115,163],[110,62,110,75],[114,120,114,132],[114,133,114,147],[117,120,118,132],[119,76,119,90],[116,120,116,132],[119,148,119,163],[114,0,114,48],[114,49,114,54],[114,55,114,61],[114,62,114,75],[116,148,116,163],[116,133,116,147],[115,133,115,147],[116,91,116,106],[115,0,115,48],[131,148,132,163],[132,133,132,147],[125,133,125,147],[124,133,124,147],[124,148,124,163],[121,133,121,147],[128,91,128,106],[120,107,120,119],[121,120,121,132],[131,76,131,147],[128,133,128,147],[120,91,120,106],[128,120,128,132],[123,120,123,132],[123,133,123,147],[121,91,121,106],[119,55,119,61],[117,55,118,61],[116,62,116,75],[115,62,115,75],[117,62,118,75],[117,107,118,119],[119,107,119,119],[117,76,118,90],[117,91,118,106],[115,91,115,106],[115,107,115,119],[116,107,116,119],[119,120,119,132],[122,148,122,163],[120,133,120,147],[121,148,121,163],[117,148,118,163],[120,148,120,163],[117,133,118,147],[120,120,120,132],[124,120,124,132],[124,107,124,119],[122,107,122,119],[125,91,125,106],[123,91,123,106],[126,107,127,119],[119,62,119,75],[124,91,124,106],[122,76,122,90],[125,76,125,90],[120,76,120,90],[128,107,128,119],[125,107,125,119],[123,107,123,119],[119,91,119,106],[122,91,122,106],[121,49,121,54],[123,49,123,54],[123,55,123,61],[123,76,123,90],[125,62,125,75],[124,62,124,75],[124,55,124,61],[124,76,124,90],[121,76,121,90],[120,49,120,54],[117,49,118,54],[120,55,120,61],[121,62,121,75],[120,62,120,75],[122,55,122,61],[122,62,122,75],[121,55,121,61],[119,49,119,54],[122,49,122,54],[131,55,132,61],[131,0,132,48],[128,0,128,48],[131,49,132,54],[124,49,124,54],[123,62,123,75],[124,0,124,48],[123,0,123,48],[125,120,125,132],[126,148,127,163],[128,148,128,163],[125,148,125,163],[126,133,127,147],[126,120,127,132],[128,49,128,54],[128,55,128,61],[131,62,132,75],[132,76,132,90],[132,107,132,119],[134,91,134,106],[123,148,123,163],[122,133,122,147],[126,91,127,106],[132,91,132,106],[132,120,132,132],[122,120,122,132],[125,55,125,61],[126,62,127,75],[126,76,127,90],[126,0,126,48],[127,0,127,48],[126,49,127,54],[134,0,134,48],[134,76,134,90],[133,91,133,106],[133,76,133,90],[126,55,127,61],[125,49,125,54],[128,76,128,90],[128,62,128,75],[133,0,133,48],[125,0,125,48],[135,55,136,61],[139,62,140,75],[137,107,137,119],[138,62,138,75],[133,55,133,61],[135,76,136,90],[137,76,137,90],[135,107,136,119],[134,107,134,119],[135,0,135,48],[136,0,136,48],[133,107,133,119],[135,133,136,147],[137,49,137,54],[133,49,133,54],[134,55,134,61],[133,62,133,75],[134,49,134,54],[134,62,134,75],[137,120,137,132],[137,133,137,147],[141,76,141,90],[139,76,140,90],[138,107,138,119],[138,120,138,132],[145,132,145,157],[141,107,141,119],[139,148,140,163],[141,148,141,163],[145,114,145,128],[139,107,140,119],[141,133,141,147],[141,120,141,132],[135,91,136,106],[137,55,137,61],[138,49,138,54],[138,55,138,61],[135,62,136,75],[137,91,137,106],[137,62,137,75],[138,76,138,90],[138,91,138,106],[135,49,136,54],[141,55,141,61],[145,13,145,34],[141,0,141,48],[139,0,139,48],[140,0,140,48],[144,13,144,34],[152,97,152,163],[141,91,141,106],[157,61,157,88],[154,86,154,111],[134,148,134,163],[133,120,133,132],[134,120,134,132],[134,133,134,147],[133,148,133,163],[133,133,133,147],[158,91,158,118],[151,97,151,163],[154,136,154,163],[146,114,146,128],[155,86,155,111]],"merged_total":1035,"flags":["merged_cut"]}
[null,"ОТЧЕТ"]
[null,"ОБ ИСПОЛНЕНИИ УЧРЕЖДЕНИЕМ ПЛАНА ЕГО ФИНАНСОВО-ХОЗЯЙСТВЕННОЙ ДЕЯТЕЛЬНОСТИ",null,null,null,null,null,null,null,null,null,null,null,null,null,null,null,null,null,null,null,null,null,null,null,null,null,null,null,null,null,null,null,null,null,null,null,null,null,null,null,null,null,null,null,null,null,null,null,null,null,null,null,null,null,null,null,null,null,null,null,null,null,null,null,null,null,null,null,null,null,null,null,null,null,null,null,null,null,null,null,null,null,null,null,null,null,null,null,null,null,null,null,null,null,null,null,null,null,null,null,null,null,null,null,null,null,null,null,null,null,null,null,null,null,null,null,null,null,null,null,null,null,null,null,null,null,null,null,null,null,null,null,null,null,null,null,null,null,null,null,null,null,null,null,null,null,null,"КОДЫ"]
[null,null,null,null,null,null,null,null,null,null,null,null,null,null,null,null,null,null,null,null,null,null,null,null,null,null,null,null,null,null,null,null,null,null,null,null,null,null,null,null,null,null,null,null,null,null,null,null,null,null,null,null,null,null,null,null,null,null,null,null,null,null,null,null,null,null,null,null,null,null,null,null,null,null,null,null,null,null,null,null,null,null,null,null,null,null,null,null,null,null,null,null,null,null,null,null,null,null,null,null,null,null,null,null,null,null,null,null,null,null,null,null,null,null,null,null,null,null,null,null,null,null,null,null,null,null,null,null,null,null,null,null,null,null,null,null,null,null,null,null,null,null,null,null,null,null,"Форма по ОКУД",null,"0503737"]
[null,null,null,null,null,null,null,null,null,null,null,null,null,null,null,null,null,null,null,null,null,null,null,null,null,null,null,null,null,null,null,null,null,null,null,null,null,null,null,null,null,null,null,null,null,null,null,null,null,null,null,null,null,null,null,null,null,null,null,null,"на 1 ","января",null,null,null,null,null,null,null,null,null,null,null,null,null,null,null,null,null,null,null,null,20,null,null,null,"16",null,null," г.",null,null,null,null,null,null,null,null,null,null,null,null,null,null,null,null,null,null,null,null,null,null,null,null,null,null,null,null,null,null,null,null,null,null,null,null,null,null,null,null,null,null,null,null,null,null,null,null,null,null,null,null,null,null,null,null,"Дата"]
["Учреждение",null,null,null,null,null,null,null,null,null,null,null,null,null,null,null,null,null,null,null,null,null,null,null,null,null,null,null,null,null,null,"МБДОУ-Хотынецкий детский сад \"Алёнушка\"",null,null,null,null,null,null,null,null,null,null,null,null,null,null,null,null,null,null,null,null,null,null,null,null,null,null,null,null,null,null,null,null,null,null,null,null,null,null,null,null,null,null,null,null,null,null,null,null,null,null,null,null,null,null,null,null,null,null,null,null,null,null,null,null,null,null,null,null,null,null,null,null,null,null,null,null,null,null,null,null,null,null,null,null,null,null,null,null,null,null,null,null,null,null,null,null,null,null,null,null,null,null,null,null,null,null,null,null,null,null,null,null,null,null,"по ОКПО",null,"23220031"]
["Обособленное подразделение"]
["Учредитель",null,null,null,null,null,null,null,null,null,null,null,null,null,null,null,null,null,null," ",null,null,null,null,null,null,null,null,null,null,null,null,null,null,null,null,null,null,null,null,null,null,null,null,null,null,null,null,null,null,null,null,null,null,null,null,null,null,null,null,null,null,null,null,null,null,null,null,null,null,null,null,null,null,null,null,null,null,null,null,null,null,null,null,null,null,null,null,null,null,null,null,null,null,null,null,null,null,null,null,null,null,null,null,null,null,null,null,null,null,null,null,null,null,null,null,null,null,null,null,null,null,null,null,null,null,null,null,null,null,null,null,null,null,null,null,null,null,null,null,null,null,null,null,null,null,"по ОКАТО",null,"54257551000"]
["Наименование органа, осуществля-",null,null,null,null,null,null,null,null,null,null,null,null,null,null,null,null,null,null,null,null,null,null,null,null,null,null,null,null,null,null,null,null,null,null,null,null,null,null,null,null,null,null,null,null,null,null,null,null,null,null,null,null,null,null,null,null,null,null,null,null,null,null,null,null,null,null,null,null,null,null,null,null,null,null,null,null,null,null,null,null,null,null,null,null,null,null,null,null,null,null,null,null,null,null,null,null,null,null,null,null,null,null,null,null,null,null,null,null,null,null,null,null,null,null,null,null,null,null,null,null,null,null,null,null,null,null,null,null,null,null,null,null,null,null,null,null,null,null,null,null,null,null,null,null,null,"по ОКПО"]
["ющего полномочия учредителя",null,null,null,null,null,null,null,null,null,null,null,null,null,null,null,null,null,null,null,null,null,null,null,null,null,null,null,null,null,null,null,null,null,null,null,null,null,null,null,null,null,null,null,null,null,null,null,null,"Администрация Хотынецкого района Орловской области",null,null,null,null,null,null,null,null,null,null,null,null,null,null,null,null,null,null,null,null,null,null,null,null,null,null,null,null,null,null,null,null,null,null,null,null,null,null,null,null,null,null,null,null,null,null,null,null,null,null,null,null,null,null,null,null,null,null,null,null,null,null,null,null,null,null,null,null,null,null,null,null,null,null,null,null,null,null,null,null,null,null,null,null,null,null,null,null,null,null,null,null,null,null,null,null,"Глава по БК"]
["Вид финансового обеспечения (деятельности)",null,null,null,null,null,null,null,null,null,null,null,null,null,null,null,null,null,null,null,null,null,null,null,null,null,null,null,null,null,null,null,null,null,null,null,null,null,null,null,null,null,null,null,null,null,null,null,null,"Сводный"]
["Периодичность: квартальная, годовая"]
["Единица измерения: руб.",null,null,null,null,null,null,null,null,null,null,null,null,null,null,null,null,null,null,null,null,null,null,null,null,null,null,null,null,null,null,null,null,null,null,null,null,null,null,null,null,null,null,null,null,null,null,null,null,null,null,null,null,null,null,null,null,null,null,null,null,null,null,null,null,null,null,null,null,null,null,null,null,null,null,null,null,null,null,null,null,null,null,null,null,null,null,null,null,null,null,null,null,null,null,null,null,null,null,null,null,null,null,null,null,null,null,null,null,null,null,null,null,null,null,null,null,null,null,null,null,null,null,null,null,null,null,null,null,null,null,null,null,null,null,null,null,null,null,null,null,null,null,null,null,null,"по ОКЕИ",null,"383"]
["1. Доходы учреждения"]
["Наименование показателя",null,null,null,null,null,null,null,null,null,null,null,null,null,null,null,null,null,null,null,null,null,null,null,null,null,null,null,null,null,null,null,null,null,null,null,null,null,null,null,null,null,null,null,null,null,null,null,null,"Код стро-ки",null,null,null,null,null,"Код анали-тики",null,null,null,null,null,null,"Утверждено плановых назначений",null,null,null,null,null,null,null,null,null,null,null,null,null,"Исполнено плановых назначений",null,null,null,null,null,null,null,null,null,null,null,null,null,null,null,null,null,null,null,null,null,null,null,null,null,null,null,null,null,null,null,null,null,null,null,null,null,null,null,null,null,null,null,null,null,null,null,null,null,null,null,null,null,null,null,null,null,null,null,null,null,null,null,null,null,null,null,null,null,null,null,"Не исполнено плановых назначений"]
[null,null,null,null,null,null,null,null,null,null,null,null,null,null,null,null,null,null,null,null,null,null,null,null,null,null,null,null,null,null,null,null,null,null,null,null,null,null,null,null,null,null,null,null,null,null,null,null,null,null,null,null,null,null,null,null,null,null,null,null,null,null,null,null,null,null,null,null,null,null,null,null,null,null,null,null,"через лицевые счета",null,null,null,null,null,null,null,null,null,null,null,null,null,null,"через банковские счета",null,null,null,null,null,null,null,null,null,null,null,null,null,null,null,"через кассу учреждения",null,null,null,null,null,null,null,null,null,null,null,null,"некассовыми операциями",null,null,null,null,null,null,null,null,null,null,null,null,"итого"]
[1,null,null,null,null,null,null,null,null,null,null,null,null,null,null,null,null,null,null,null,null,null,null,null,null,null,null,null,null,null,null,null,null,null,null,null,null,null,null,null,null,null,null,null,null,null,null,null,null,2,null,null,null,null,null,3,null,null,null,null,null,null,4,null,null,null,null,null,null,null,null,null,null,null,null,null,5,null,null,null,null,null,null,null,null,null,null,null,null,null,null,6,null,null,null,null,null,null,null,null,null,null,null,null,null,null,null,7,null,null,null,null,null,null,null,null,null,null,null,null,8,null,null,null,null,null,null,null,null,null,null,null,null,9,null,null,null,null,null,null,null,null,null,null,null,null,null,null,10]
["Доходы - всего",null,null,null,null,null,null,null,null,null,null,null,null,null,null,null,null,null,null,null,null,null,null,null,null,null,null,null,null,null,null,null,null,null,null,null,null,null,null,null,null,null,null,null,null,null,null,null,null,"010",null,null,null,null,null,null,null,null,null,null,null,null,{"$f":"BK21+BK36","v":12776580},null,null,null,null,null,null,null,null,null,null,null,null,null,{"$f":"BY21+BY36","v":10867261.789999999},null,null,null,null,null,null,null,null,null,null,null,null,null,null,null,null,null,null,null,null,null,null,null,null,null,null,null,null,null,null,{"$f":"DD21","v":1909318.21},null,null,null,null,null,null,null,null,null,null,null,null,null,null,null,null,null,null,null,null,null,null,null,null,null,{"$f":"ED36+ED21","v":12776580},null,null,null,null,null,null,null,null,null,null,null,null,null,null,{"$f":"BK17-ED17","v":0}]
["Доходы от собственности",null,null,null,null,null,null,null,null,null,null,null,null,null,null,null,null,null,null,null,null,null,null,null,null,null,null,null,null,null,null,null,null,null,null,null,null,null,null,null,null,null,null,null,null,null,null,null,null,"030",null,null,null,null,null,"120"]
["из них:",null,null,null,null,null,null,null,null,null,null,null,null,null,null,null,null,null,null,null,null,null,null,null,null,null,null,null,null,null,null,null,null,null,null,null,null,null,null,null,null,null,null,null,null,null,null,null,null,"101",null,null,null,null,null,"120"]
["от аренды активов"]
["Доходы от оказания платных услуг (работ)",null,null,null,null,null,null,null,null,null,null,null,null,null,null,null,null,null,null,null,null,null,null,null,null,null,null,null,null,null,null,null,null,null,null,null,null,null,null,null,null,null,null,null,null,null,null,null,null,"040",null,null,null,null,null,"130",null,null,null,null,null,null,1909318.21,null,null,null,null,null,null,null,null,null,null,null,null,null,null,null,null,null,null,null,null,null,null,null,null,null,null,null,null,null,null,null,null,null,null,null,null,null,null,null,null,null,null,null,null,1909318.21,null,null,null,null,null,null,null,null,null,null,null,null,null,null,null,null,null,null,null,null,null,null,null,null,null,{"$f":"BY21+DD21","v":1909318.21},null,null,null,null,null,null,null,null,null,null,null,null,null,null,{"$f":"BK21-ED21","v":0}]
["Доходы от штрафов, пеней, иных сумм принудительного изъятия",null,null,null,null,null,null,null,null,null,null,null,null,null,null,null,null,null,null,null,null,null,null,null,null,null,null,null,null,null,null,null,null,null,null,null,null,null,null,null,null,null,null,null,null,null,null,null,null,"050",null,null,null,null,null,"140"]
["Безвозмездные поступления от бюджетов",null,null,null,null,null,null,null,null,null,null,null,null,null,null,null,null,null,null,null,null,null,null,null,null,null,null,null,null,null,null,null,null,null,null,null,null,null,null,null,null,null,null,null,null,null,null,null,null,"060",null,null,null,null,null,"150"]
["в том числе:",null,null,null,null,null,null,null,null,null,null,null,null,null,null,null,null,null,null,null,null,null,null,null,null,null,null,null,null,null,null,null,null,null,null,null,null,null,null,null,null,null,null,null,null,null,null,null,null,"062",null,null,null,null,null,"152"]
["поступления от наднациональных организаций и правительств иностранных государств"]
["поступления от международных финансовых организаций",null,null,null,null,null,null,null,null,null,null,null,null,null,null,null,null,null,null,null,null,null,null,null,null,null,null,null,null,null,null,null,null,null,null,null,null,null,null,null,null,null,null,null,null,null,null,null,null,"063",null,null,null,null,null,"153"]
["Доходы от операций с активами",null,null,null,null,null,null,null,null,null,null,null,null,null,null,null,null,null,null,null,null,null,null,null,null,null,null,null,null,null,null,null,null,null,null,null,null,null,null,null,null,null,null,null,null,null,null,null,null,"090",null,null,null,null,null,"х"]
["в том числе:",null,null,null,null,null,null,null,null,null,null,null,null,null,null,null,null,null,null,null,null,null,null,null,null,null,null,null,null,null,null,null,null,null,null,null,null,null,null,null,null,null,null,null,null,null,null,null,null,"092",null,null,null,null,null,"410"]
["от выбытий основных средств"]
["от выбытий нематериальных активов",null,null,null,null,null,null,null,null,null,null,null,null,null,null,null,null,null,null,null,null,null,null,null,null,null,null,null,null,null,null,null,null,null,null,null,null,null,null,null,null,null,null,null,null,null,null,null,null,"093",null,null,null,null,null,"420"]
["от выбытий непроизведенных активов",null,null,null,null,null,null,null,null,null,null,null,null,null,null,null,null,null,null,null,null,null,null,null,null,null,null,null,null,null,null,null,null,null,null,null,null,null,null,null,null,null,null,null,null,null,null,null,null,"094",null,null,null,null,null,"430"]
["от выбытий материальных запасов",null,null,null,null,null,null,null,null,null,null,null,null,null,null,null,null,null,null,null,null,null,null,null,null,null,null,null,null,null,null,null,null,null,null,null,null,null,null,null,null,null,null,null,null,null,null,null,null,"095",null,null,null,null,null,"440"]
["от выбытий ценных бумаг, кроме акций",null,null,null,null,null,null,null,null,null,null,null,null,null,null,null,null,null,null,null,null,null,null,null,null,null,null,null,null,null,null,null,null,null,null,null,null,null,null,null,null,null,null,null,null,null,null,null,null,"096",null,null,null,null,null,"620"]
["от выбытий акций ",null,null,null,null,null,null,null,null,null,null,null,null,null,null,null,null,null,null,null,null,null,null,null,null,null,null,null,null,null,null,null,null,null,null,null,null,null,null,null,null,null,null,null,null,null,null,null,null,"097",null,null,null,null,null,"630"]
["от выбытий иных финансовых активов",null,null,null,null,null,null,null,null,null,null,null,null,null,null,null,null,null,null,null,null,null,null,null,null,null,null,null,null,null,null,null,null,null,null,null,null,null,null,null,null,null,null,null,null,null,null,null,null,"098",null,null,null,null,null,"650"]
["Прочие доходы",null,null,null,null,null,null,null,null,null,null,null,null,null,null,null,null,null,null,null,null,null,null,null,null,null,null,null,null,null,null,null,null,null,null,null,null,null,null,null,null,null,null,null,null,null,null,null,null,"100",null,null,null,null,null,"180",null,null,null,null,null,null,{"$f":"BK37+BK39","v":10867261.789999999},null,null,null,null,null,null,null,null,null,null,null,null,null,{"$f":"BY37+BY39+BY41","v":10867261.789999999},null,null,null,null,null,null,null,null,null,null,null,null,null,null,{"$f":"CN37+CN39","v":0},null,null,null,null,null,null,null,null,null,null,null,null,null,null,null,null,null,null,null,null,null,null,null,null,null,null,null,null,null,null,null,null,null,null,null,null,null,null,null,null,null,{"$f":"ED37+ED39+ED40+ED41","v":10867261.789999999},null,null,null,null,null,null,null,null,null,null,null,null,null,null,{"$f":"BK36-ED36","v":0}]
["из них:",null,null,null,null,null,null,null,null,null,null,null,null,null,null,null,null,null,null,null,null,null,null,null,null,null,null,null,null,null,null,null,null,null,null,null,null,null,null,null,null,null,null,null,null,null,null,null,null,"101",null,null,null,null,null,"180",null,null,null,null,null,null,10812761.789999999,null,null,null,null,null,null,null,null,null,null,null,null,null,10812761.789999999,null,null,null,null,null,null,null,null,null,null,null,null,null,null,null,null,null,null,null,null,null,null,null,null,null,null,null,null,null,null,null,null,null,null,null,null,null,null,null,null,null,null,null,null,null,null,null,null,null,null,null,null,null,null,null,null,{"$f":"BY37+DD37","v":10812761.789999999},null,null,null,null,null,null,null,null,null,null,null,null,null,null,{"$f":"BK37-ED37","v":0}]
["субсидии на выполнение государственного (муниципального) задания"]
["субсидии на иные цели ",null,null,null,null,null,null,null,null,null,null,null,null,null,null,null,null,null,null,null,null,null,null,null,null,null,null,null,null,null,null,null,null,null,null,null,null,null,null,null,null,null,null,null,null,null,null,null,null,"102",null,null,null,null,null,"180",null,null,null,null,null,null,54500,null,null,null,null,null,null,null,null,null,null,null,null,null,54500,null,null,null,null,null,null,null,null,null,null,null,null,null,null,null,null,null,null,null,null,null,null,null,null,null,null,null,null,null,null,null,null,null,null,null,null,null,null,null,null,null,null,null,null,null,null,null,null,null,null,null,null,null,null,null,null,{"$f":"BY39","v":54500},null,null,null,null,null,null,null,null,null,null,null,null,null,null,{"$f":"BK39-ED39","v":0}]
["бюджетные инвестиции",null,null,null,null,null,null,null,null,null,null,null,null,null,null,null,null,null,null,null,null,null,null,null,null,null,null,null,null,null,null,null,null,null,null,null,null,null,null,null,null,null,null,null,null,null,null,null,null,"103",null,null,null,null,null,"180",null,null,null,null,null,null,null,null,null,null,null,null,null,null,null,null,null,null,null,null,null,null,null,null,null,null,null,null,null,null,null,null,null,null,null,null,null,null,null,null,null,null,null,null,null,null,null,null,null,null,null,null,null,null,null,null,null,null,null,null,null,null,null,null,null,null,null,null,null,null,null,null,null,null,null,null,null,{"$f":"BY40","v":0}]
["иные доходы",null,null,null,null,null,null,null,null,null,null,null,null,null,null,null,null,null,null,null,null,null,null,null,null,null,null,null,null,null,null,null,null,null,null,null,null,null,null,null,null,null,null,null,null,null,null,null,null,"104",null,null,null,null,null,"180",null,null,null,null,null,null,null,null,null,null,null,null,null,null,null,null,null,null,null,null,null,null,null,null,null,null,null,null,null,null,null,null,null,null,null,null,null,null,null,null,null,null,null,null,null,null,null,null,null,null,null,null,null,null,null,null,null,null,null,null,null,null,null,null,null,null,null,null,null,null,null,null,null,null,null,null,null,{"$f":"BY41","v":0},null,null,null,null,null,null,null,null,null,null,null,null,null,null,{"$f":"BK41-ED41","v":0}]
[null,null,null,null,null,null,null,null,null,null,null,null,null,null,null,null,null,null,null,null,null,null,null,null,null,null,null,null,null,"2. Расходы учреждения",null,null,null,null,null,null,null,null,null,null,null,null,null,null,null,null,null,null,null,null,null,null,null,null,null,null,null,null,null,null,null,null,null,null,null,null,null,null,null,null,null,null,null,null,null,null,null,null,null,null,null,null,null,null,null,null,null,null,null,null,null,null,null,null,null,null,null,null,null,null,null,null,null,null,null,null,null,null,null,null,null,null,null,null,null,null,null,null,null,null,null,null,null,null,null,null,null,null,null,null,null,null,null,null,null,null,null,null,null,null,null,null,null,null,null,null,null,null,null,null,null,null,null,null,null,null,null,null,null,null,null,null,null,"Форма 0503737 с. 2"]
[]
["Наименование показателя",null,null,null,null,null,null,null,null,null,null,null,null,null,null,null,null,null,null,null,null,null,null,null,null,null,null,null,null,null,null,null,null,null,null,null,null,null,null,null,null,null,null,null,null,null,null,null,null,"Код стро-ки",null,null,null,null,null,"Код анали-тики",null,null,null,null,null,null,"Утверждено плановых назначений",null,null,null,null,null,null,null,null,null,null,null,null,null,"Исполнено плановых назначений",null,null,null,null,null,null,null,null,null,null,null,null,null,null,null,null,null,null,null,null,null,null,null,null,null,null,null,null,null,null,null,null,null,null,null,null,null,null,null,null,null,null,null,null,null,null,null,null,null,null,null,null,null,null,null,null,null,null,null,null,null,null,null,null,null,null,null,null,null,null,null,"Не исполнено плановых назначений"]
[null,null,null,null,null,null,null,null,null,null,null,null,null,null,null,null,null,null,null,null,null,null,null,null,null,null,null,null,null,null,null,null,null,null,null,null,null,null,null,null,null,null,null,null,null,null,null,null,null,null,null,null,null,null,null,null,null,null,null,null,null,null,null,null,null,null,null,null,null,null,null,null,null,null,null,null,"через лицевые счета",null,null,null,null,null,null,null,null,null,null,null,null,null,null,"через банковские счета",null,null,null,null,null,null,null,null,null,null,null,null,null,null,null,"через кассу учреждения",null,null,null,null,null,null,null,null,null,null,null,null,"некассовыми операциями",null,null,null,null,null,null,null,null,null,null,null,null,"итого"]
[1,null,null,null,null,null,null,null,null,null,null,null,null,null,null,null,null,null,null,null,null,null,null,null,null,null,null,null,null,null,null,null,null,null,null,null,null,null,null,null,null,null,null,null,null,null,null,null,null,2,null,null,null,null,null,3,null,null,null,null,null,null,4,null,null,null,null,null,null,null,null,null,null,null,null,null,5,null,null,null,null,null,null,null,null,null,null,null,null,null,null,6,null,null,null,null,null,null,null,null,null,null,null,null,null,null,null,7,null,null,null,null,null,null,null,null,null,null,null,null,8,null,null,null,null,null,null,null,null,null,null,null,null,9,null,null,null,null,null,null,null,null,null,null,null,null,null,null,10]
["Расходы - всего",null,null,null,null,null,null,null,null,null,null,null,null,null,null,null,null,null,null,null,null,null,null,null,null,null,null,null,null,null,null,null,null,null,null,null,null,null,null,null,null,null,null,null,null,null,null,null,null,"200",null,null,null,null,null,"х",null,null,null,null,null,null,{"$f":"BK48+BK55+BK80+BK84+BK85","v":12776580},null,null,null,null,null,null,null,null,null,null,null,null,null,{"$f":"BY48+BY55+BY80+BY84+BY85","v":12776580},null,null,null,null,null,null,null,null,null,null,null,null,null,null,null,null,null,null,null,null,null,null,null,null,null,null,null,null,null,null,{"$f":"DD55+DD84+DD85","v":0},null,null,null,null,null,null,null,null,null,null,null,null,null,null,null,null,null,null,null,null,null,null,null,null,null,{"$f":"ED48+ED55+ED80+ED84+ED85","v":12776580},null,null,null,null,null,null,null,null,null,null,null,null,null,null,{"$f":"BK47-ED47","v":0}]
["в том числе:",null,null,null,null,null,null,null,null,null,null,null,null,null,null,null,null,null,null,null,null,null,null,null,null,null,null,null,null,null,null,null,null,null,null,null,null,null,null,null,null,null,null,null,null,null,null,null,null,"160",null,null,null,null,null,"210",null,null,null,null,null,null,{"$f":"BK50+BK52+BK54","v":8889827.6699999999},null,null,null,null,null,null,null,null,null,null,null,null,null,{"$f":"BY50+BY52+BY54","v":8889827.6699999999},null,null,null,null,null,null,null,null,null,null,null,null,null,null,null,null,null,null,null,null,null,null,null,null,null,null,null,null,null,null,0,null,null,null,null,null,null,null,null,null,null,null,null,null,null,null,null,null,null,null,null,null,null,null,null,null,{"$f":"ED50+ED52+ED54","v":8889827.6699999999},null,null,null,null,null,null,null,null,null,null,null,null,null,null,{"$f":"BK48-ED48","v":0}]
["Оплата труда и начисления на выплаты по оплате труда"]
["в том числе:",null,null,null,null,null,null,null,null,null,null,null,null,null,null,null,null,null,null,null,null,null,null,null,null,null,null,null,null,null,null,null,null,null,null,null,null,null,null,null,null,null,null,null,null,null,null,null,null,"161",null,null,null,null,null,"211",null,null,null,null,null,null,6915047.0099999998,null,null,null,null,null,null,null,null,null,null,null,null,null,6915047.0099999998,null,null,null,null,null,null,null,null,null,null,null,null,null,null,null,null,null,null,null,null,null,null,null,null,null,null,null,null,null,null,null,null,null,null,null,null,null,null,null,null,null,null,null,null,null,null,null,null,null,null,null,null,null,null,null,null,{"$f":"BY50","v":6915047.0099999998},null,null,null,null,null,null,null,null,null,null,null,null,null,null,{"$f":"BK50-ED50","v":0}]
["заработная плата"]
["прочие выплаты",null,null,null,null,null,null,null,null,null,null,null,null,null,null,null,null,null,null,null,null,null,null,null,null,null,null,null,null,null,null,null,null,null,null,null,null,null,null,null,null,null,null,null,null,null,null,null,null,"162",null,null,null,null,null,"212",null,null,null,null,null,null,0,null,null,null,null,null,null,null,null,null,null,null,null,null,null,null,null,null,null,null,null,null,null,null,null,null,null,null,null,null,null,null,null,null,null,null,null,null,null,null,null,null,null,null,null,0,null,null,null,null,null,null,null,null,null,null,null,null,null,null,null,null,null,null,null,null,null,null,null,null,null,{"$f":"BY52+DD52","v":0},null,null,null,null,null,null,null,null,null,null,null,null,null,null,{"$f":"BK52-ED52","v":0}]
[null,"в т.ч.методлитература",null,null,null,null,null,null,null,null,null,null,null,null,null,null,null,null,null,null,null,null,null,null,null,null,null,null,null,null,null,null,null,null,null,null,null,null,null,null,null,null,null,null,null,null,null,null,null,null,null,null,null,null,null,null,null,null,null,null,null,null,null,null,null,null,null,null,null,null,null,null,null,null,null,null,null,null,null,null,null,null,null,null,null,null,null,null,null,null,null,null,null,null,null,null,null,null,null,null,null,null,null,null,null,null,null,null,null,null,null,null,null,null,null,null,null,null,null,null,null,null,null,null,null,null,null,null,null,null,null,null,null,{"$f":"BZ53","v":0},null,null,null,null,null,null,null,null,null,null,null,null,null,null,null,{"$f":"BL53-ED53","v":0}]
["начисления на выплаты по оплате труда",null,null,null,null,null,null,null,null,null,null,null,null,null,null,null,null,null,null,null,null,null,null,null,null,null,null,null,null,null,null,null,null,null,null,null,null,null,null,null,null,null,null,null,null,null,null,null,null,"163",null,null,null,null,null,"213",null,null,null,null,null,null,1974780.66,null,null,null,null,null,null,null,null,null,null,null,null,null,1974780.66,null,null,null,null,null,null,null,null,null,null,null,null,null,null,null,null,null,null,null,null,null,null,null,null,null,null,null,null,null,null,null,null,null,null,null,null,null,null,null,null,null,null,null,null,null,null,null,null,null,null,null,null,null,null,null,null,{"$f":"BY54","v":1974780.66},null,null,null,null,null,null,null,null,null,null,null,null,null,null,{"$f":"BK54-ED54","v":0}]
["Приобретение работ, услуг",null,null,null,null,null,null,null,null,null,null,null,null,null,null,null,null,null,null,null,null,null,null,null,null,null,null,null,null,null,null,null,null,null,null,null,null,null,null,null,null,null,null,null,null,null,null,null,null,"170",null,null,null,null,null,"220",null,null,null,null,null,null,{"$f":"BK56+BK58+BK59+BK60+BK61+BK62","v":1824158.9000000001},null,null,null,null,null,null,null,null,null,null,null,null,null,{"$f":"BY56+BY58+BY59+BY61+BY62","v":1824158.9000000001},null,null,null,null,null,null,null,null,null,null,null,null,null,null,null,null,null,null,null,null,null,null,null,null,null,null,null,null,null,null,{"$f":"DD62","v":0},null,null,null,null,null,null,null,null,null,null,null,null,null,null,null,null,null,null,null,null,null,null,null,null,null,{"$f":"ED56+ED58+ED59+ED61+ED62","v":1824158.9000000001},null,null,null,null,null,null,null,null,null,null,null,null,null,null,{"$f":"BK55-ED55","v":0}]
["в том числе:",null,null,null,null,null,null,null,null,null,null,null,null,null,null,null,null,null,null,null,null,null,null,null,null,null,null,null,null,null,null,null,null,null,null,null,null,null,null,null,null,null,null,null,null,null,null,null,null,"171",null,null,null,null,null,"221",null,null,null,null,null,null,46193.83,null,null,null,null,null,null,null,null,null,null,null,null,null,46193.83,null,null,null,null,null,null,null,null,null,null,null,null,null,null,null,null,null,null,null,null,null,null,null,null,null,null,null,null,null,null,null,null,null,null,null,null,null,null,null,null,null,null,null,null,null,null,null,null,null,null,null,null,null,null,null,null,{"$f":"BY56","v":46193.83},null,null,null,null,null,null,null,null,null,null,null,null,null,null,{"$f":"BK56-ED56","v":0}]
["услуги связи"]
["транспортные услуги",null,null,null,null,null,null,null,null,null,null,null,null,null,null,null,null,null,null,null,null,null,null,null,null,null,null,null,null,null,null,null,null,null,null,null,null,null,null,null,null,null,null,null,null,null,null,null,null,"172",null,null,null,null,null,"222",null,null,null,null,null,null,0,null,null,null,null,null,null,null,null,null,null,null,null,null,0,null,null,null,null,null,null,null,null,null,null,null,null,null,null,null,null,null,null,null,null,null,null,null,null,null,null,null,null,null,null,null,null,null,null,null,null,null,null,null,null,null,null,null,null,null,null,null,null,null,null,null,null,null,null,null,null,{"$f":"BY58","v":0},null,null,null,null,null,null,null,null,null,null,null,null,null,null,{"$f":"BK58-CN58","v":0}]
["коммунальные услуги",null,null,null,null,null,null,null,null,null,null,null,null,null,null,null,null,null,null,null,null,null,null,null,null,null,null,null,null,null,null,null,null,null,null,null,null,null,null,null,null,null,null,null,null,null,null,null,null,"173",null,null,null,null,null,"223",null,null,null,null,null,null,1584021.11,null,null,null,null,null,null,null,null,null,null,null,null,null,1584021.11,null,null,null,null,null,null,null,null,null,null,null,null,null,null,null,null,null,null,null,null,null,null,null,null,null,null,null,null,null,null,null,null,null,null,null,null,null,null,null,null,null,null,null,null,null,null,null,null,null,null,null,null,null,null,null,null,{"$f":"BY59","v":1584021.11},null,null,null,null,null,null,null,null,null,null,null,null,null,null,{"$f":"BK59-ED59","v":0}]
["арендная плата за пользование имуществом",null,null,null,null,null,null,null,null,null,null,null,null,null,null,null,null,null,null,null,null,null,null,null,null,null,null,null,null,null,null,null,null,null,null,null,null,null,null,null,null,null,null,null,null,null,null,null,null,"174",null,null,null,null,null,"224"]
["работы, услуги по содержанию имущества",null,null,null,null,null,null,null,null,null,null,null,null,null,null,null,null,null,null,null,null,null,null,null,null,null,null,null,null,null,null,null,null,null,null,null,null,null,null,null,null,null,null,null,null,null,null,null,null,"175",null,null,null,null,null,"225",null,null,null,null,null,null,162643.96,null,null,null,null,null,null,null,null,null,null,null,null,null,162643.96,null,null,null,null,null,null,null,null,null,null,null,null,null,null,null,null,null,null,null,null,null,null,null,null,null,null,null,null,null,null,null,null,null,null,null,null,null,null,null,null,null,null,null,null,null,null,null,null,null,null,null,null,null,null,null,null,{"$f":"BY61","v":162643.96},null,null,null,null,null,null,null,null,null,null,null,null,null,null,{"$f":"BK61-ED61","v":0}]
["прочие работы, услуги",null,null,null,null,null,null,null,null,null,null,null,null,null,null,null,null,null,null,null,null,null,null,null,null,null,null,null,null,null,null,null,null,null,null,null,null,null,null,null,null,null,null,null,null,null,null,null,null,"176",null,null,null,null,null,"226",null,null,null,null,null,null,31300,null,null,null,null,null,null,null,null,null,null,null,null,null,31300,null,null,null,null,null,null,null,null,null,null,null,null,null,null,null,null,null,null,null,null,null,null,null,null,null,null,null,null,null,null,null,null,null,null,null,null,null,null,null,null,null,null,null,null,null,null,null,null,null,null,null,null,null,null,null,null,{"$f":"BY62+DD62","v":31300},null,null,null,null,null,null,null,null,null,null,null,null,null,null,{"$f":"BK62-ED62","v":0}]
["Обслуживание долговых обязательств",null,null,null,null,null,null,null,null,null,null,null,null,null,null,null,null,null,null,null,null,null,null,null,null,null,null,null,null,null,null,null,null,null,null,null,null,null,null,null,null,null,null,null,null,null,null,null,null,"190",null,null,null,null,null,"230"]
["в том числе:",null,null,null,null,null,null,null,null,null,null,null,null,null,null,null,null,null,null,null,null,null,null,null,null,null,null,null,null,null,null,null,null,null,null,null,null,null,null,null,null,null,null,null,null,null,null,null,null,"191",null,null,null,null,null,"231"]
["обслуживание долговых обязательств перед резидентами"]
["обслуживание долговых обязательств перед нерезидентами",null,null,null,null,null,null,null,null,null,null,null,null,null,null,null,null,null,null,null,null,null,null,null,null,null,null,null,null,null,null,null,null,null,null,null,null,null,null,null,null,null,null,null,null,null,null,null,null,"192",null,null,null,null,null,"232"]
["Безвозмездные перечисления организациям",null,null,null,null,null,null,null,null,null,null,null,null,null,null,null,null,null,null,null,null,null,null,null,null,null,null,null,null,null,null,null,null,null,null,null,null,null,null,null,null,null,null,null,null,null,null,null,null,"210",null,null,null,null,null,"240"]
["в том числе:",null,null,null,null,null,null,null,null,null,null,null,null,null,null,null,null,null,null,null,null,null,null,null,null,null,null,null,null,null,null,null,null,null,null,null,null,null,null,null,null,null,null,null,null,null,null,null,null,"211",null,null,null,null,null,"241"]
["безвозмездные перечисления государственным и муниципальным организациям"]
["безвозмездные перечисления организациям, за исключением государственных и муниципальных организаций",null,null,null,null,null,null,null,null,null,null,null,null,null,null,null,null,null,null,null,null,null,null,null,null,null,null,null,null,null,null,null,null,null,null,null,null,null,null,null,null,null,null,null,null,null,null,null,null,"212",null,null,null,null,null,"242"]
[null,null,null,null,null,null,null,null,null,null,null,null,null,null,null,null,null,null,null,null,null,null,null,null,null,null,null,null,null,null,null,null,null,null,null,null,null,null,null,null,null,null,null,null,null,null,null,null,null,null,null,null,null,null,null,null,null,null,null,null,null,null,null,null,null,null,null,null,null,null,null,null,null,null,null,null,null,null,null,null,null,null,null,null,null,null,null,null,null,null,null,null,null,null,null,null,null,null,null,null,null,null,null,null,null,null,null,null,null,null,null,null,null,null,null,null,null,null,null,null,null,null,null,null,null,null,null,null,null,null,null,null,null,null,null,null,null,null,null,null,null,null,null,null,null,null,null,null,null,null,null,null,null,null,null,null,null,null,null,null,null,null,null,"Форма 0503737 с. 3"]
[]
["Наименование показателя",null,null,null,null,null,null,null,null,null,null,null,null,null,null,null,null,null,null,null,null,null,null,null,null,null,null,null,null,null,null,null,null,null,null,null,null,null,null,null,null,null,null,null,null,null,null,null,null,"Код стро-ки",null,null,null,null,null,"Код анали-тики",null,null,null,null,null,null,"Утверждено плановых назначений",null,null,null,null,null,null,null,null,null,null,null,null,null,"Исполнено плановых назначений",null,null,null,null,null,null,null,null,null,null,null,null,null,null,null,null,null,null,null,null,null,null,null,null,null,null,null,null,null,null,null,null,null,null,null,null,null,null,null,null,null,null,null,null,null,null,null,null,null,null,null,null,null,null,null,null,null,null,null,null,null,null,null,null,null,null,null,null,null,null,null,"Не исполнено плановых назначений"]
[null,null,null,null,null,null,null,null,null,null,null,null,null,null,null,null,null,null,null,null,null,null,null,null,null,null,null,null,null,null,null,null,null,null,null,null,null,null,null,null,null,null,null,null,null,null,null,null,null,null,null,null,null,null,null,null,null,null,null,null,null,null,null,null,null,null,null,null,null,null,null,null,null,null,null,null,"через лицевые счета",null,null,null,null,null,null,null,null,null,null,null,null,null,null,"через банковские счета",null,null,null,null,null,null,null,null,null,null,null,null,null,null,null,"через кассу учреждения",null,null,null,null,null,null,null,null,null,null,null,null,"некассовыми операциями",null,null,null,null,null,null,null,null,null,null,null,null,"итого"]
[1,null,null,null,null,null,null,null,null,null,null,null,null,null,null,null,null,null,null,null,null,null,null,null,null,null,null,null,null,null,null,null,null,null,null,null,null,null,null,null,null,null,null,null,null,null,null,null,null,2,null,null,null,null,null,3,null,null,null,null,null,null,4,null,null,null,null,null,null,null,null,null,null,null,null,null,5,null,null,null,null,null,null,null,null,null,null,null,null,null,null,6,null,null,null,null,null,null,null,null,null,null,null,null,null,null,null,7,null,null,null,null,null,null,null,null,null,null,null,null,8,null,null,null,null,null,null,null,null,null,null,null,null,9,null,null,null,null,null,null,null,null,null,null,null,null,null,null,10]
["Безвозмездные перечисления бюджетам",null,null,null,null,null,null,null,null,null,null,null,null,null,null,null,null,null,null,null,null,null,null,null,null,null,null,null,null,null,null,null,null,null,null,null,null,null,null,null,null,null,null,null,null,null,null,null,null,"230",null,null,null,null,null,"250"]
["в том числе:",null,null,null,null,null,null,null,null,null,null,null,null,null,null,null,null,null,null,null,null,null,null,null,null,null,null,null,null,null,null,null,null,null,null,null,null,null,null,null,null,null,null,null,null,null,null,null,null,"232",null,null,null,null,null,"252"]
["перечисления наднациональным организациям и правительствам иностранных государств"]
["перечисления международным организациям",null,null,null,null,null,null,null,null,null,null,null,null,null,null,null,null,null,null,null,null,null,null,null,null,null,null,null,null,null,null,null,null,null,null,null,null,null,null,null,null,null,null,null,null,null,null,null,null,"233",null,null,null,null,null,"253"]
["Социальное обеспечение",null,null,null,null,null,null,null,null,null,null,null,null,null,null,null,null,null,null,null,null,null,null,null,null,null,null,null,null,null,null,null,null,null,null,null,null,null,null,null,null,null,null,null,null,null,null,null,null,"240",null,null,null,null,null,"260",null,null,null,null,null,null,{"$f":"BK81","v":0},null,null,null,null,null,null,null,null,null,null,null,null,null,0,null,null,null,null,null,null,null,null,null,null,null,null,null,null,null,null,null,null,null,null,null,null,null,null,null,null,null,null,null,null,null,null,null,null,null,null,null,null,null,null,null,null,null,null,null,null,null,null,null,null,null,null,null,null,null,null,0,null,null,null,null,null,null,null,null,null,null,null,null,null,null,{"$f":"BK80-ED80","v":0}]
["в том числе:",null,null,null,null,null,null,null,null,null,null,null,null,null,null,null,null,null,null,null,null,null,null,null,null,null,null,null,null,null,null,null,null,null,null,null,null,null,null,null,null,null,null,null,null,null,null,null,null,"242",null,null,null,null,null,"262",null,null,null,null,null,null,0,null,null,null,null,null,null,null,null,null,null,null,null,null,0,null,null,null,null,null,null,null,null,null,null,null,null,null,null,null,null,null,null,null,null,null,null,null,null,null,null,null,null,null,null,null,null,null,null,null,null,null,null,null,null,null,null,null,null,null,null,null,null,null,null,null,null,null,null,null,null,0,null,null,null,null,null,null,null,null,null,null,null,null,null,null,{"$f":"BK81-ED81","v":0}]
["пособия по социальной помощи населению"]
["пенсии, пособия, выплачиваемые организациями сектора государственного управления",null,null,null,null,null,null,null,null,null,null,null,null,null,null,null,null,null,null,null,null,null,null,null,null,null,null,null,null,null,null,null,null,null,null,null,null,null,null,null,null,null,null,null,null,null,null,null,null,"243",null,null,null,null,null,"263"]
["Прочие расходы",null,null,null,null,null,null,null,null,null,null,null,null,null,null,null,null,null,null,null,null,null,null,null,null,null,null,null,null,null,null,null,null,null,null,null,null,null,null,null,null,null,null,null,null,null,null,null,null,"250",null,null,null,null,null,"290",null,null,null,null,null,null,91475.22,null,null,null,null,null,null,null,null,null,null,null,null,null,91475.22,null,null,null,null,null,null,null,null,null,null,null,null,null,null,null,null,null,null,null,null,null,null,null,null,null,null,null,null,null,null,null,null,null,null,null,null,null,null,null,null,null,null,null,null,null,null,null,null,null,null,null,null,null,null,null,null,{"$f":"BY84+DD84","v":91475.22},null,null,null,null,null,null,null,null,null,null,null,null,null,null,{"$f":"BK84-ED84","v":0}]
["Расходы по приобретению нефинансовых активов ",null,null,null,null,null,null,null,null,null,null,null,null,null,null,null,null,null,null,null,null,null,null,null,null,null,null,null,null,null,null,null,null,null,null,null,null,null,null,null,null,null,null,null,null,null,null,null,null,"260",null,null,null,null,null,"300",null,null,null,null,null,null,{"$f":"BK86+BK90","v":1971118.21},null,null,null,null,null,null,null,null,null,null,null,null,null,{"$f":"BY86+BY90","v":1971118.21},null,null,null,null,null,null,null,null,null,null,null,null,null,null,{"$f":"CN86+CN90","v":0},null,null,null,null,null,null,null,null,null,null,null,null,null,null,null,{"$f":"DD90","v":0},null,null,null,null,null,null,null,null,null,null,null,null,null,null,null,null,null,null,null,null,null,null,null,null,null,{"$f":"ED86+ED90","v":1971118.21},null,null,null,null,null,null,null,null,null,null,null,null,null,null,{"$f":"BK85-ED85","v":0}]
["в том числе:",null,null,null,null,null,null,null,null,null,null,null,null,null,null,null,null,null,null,null,null,null,null,null,null,null,null,null,null,null,null,null,null,null,null,null,null,null,null,null,null,null,null,null,null,null,null,null,null,"261",null,null,null,null,null,"310",null,null,null,null,null,null,4500,null,null,null,null,null,null,null,null,null,null,null,null,null,4500,null,null,null,null,null,null,null,null,null,null,null,null,null,null,null,null,null,null,null,null,null,null,null,null,null,null,null,null,null,null,null,null,null,null,null,null,null,null,null,null,null,null,null,null,null,null,null,null,null,null,null,null,null,null,null,null,{"$f":"BY86","v":4500},null,null,null,null,null,null,null,null,null,null,null,null,null,null,{"$f":"BK86-ED86","v":0}]
["основных средств "]
["нематериальных активов",null,null,null,null,null,null,null,null,null,null,null,null,null,null,null,null,null,null,null,null,null,null,null,null,null,null,null,null,null,null,null,null,null,null,null,null,null,null,null,null,null,null,null,null,null,null,null,null,"262",null,null,null,null,null,"320"]
["непроизведенных активов",null,null,null,null,null,null,null,null,null,null,null,null,null,null,null,null,null,null,null,null,null,null,null,null,null,null,null,null,null,null,null,null,null,null,null,null,null,null,null,null,null,null,null,null,null,null,null,null,"263",null,null,null,null,null,"330"]
["материальных запасов",null,null,null,null,null,null,null,null,null,null,null,null,null,null,null,null,null,null,null,null,null,null,null,null,null,null,null,null,null,null,null,null,null,null,null,null,null,null,null,null,null,null,null,null,null,null,null,null,"264",null,null,null,null,null,"340",null,null,null,null,null,null,1966618.21,null,null,null,null,null,null,null,null,null,null,null,null,null,1966618.21,null,null,null,null,null,null,null,null,null,null,null,null,null,null,null,null,null,null,null,null,null,null,null,null,null,null,null,null,null,null,null,null,null,null,null,null,null,null,null,null,null,null,null,null,null,null,null,null,null,null,null,null,null,null,null,null,{"$f":"BY90+DD90","v":1966618.21},null,null,null,null,null,null,null,null,null,null,null,null,null,null,{"$f":"BK90-ED90","v":0}]
[null,"в т.ч.питание",null,null,null,null,null,null,null,null,null,null,null,null,null,null,null,null,null,null,null,null,null,null,null,null,null,null,null,null,null,null,null,null,null,null,null,null,null,null,null,null,null,null,null,null,null,null,null,null,null,null,null,null,null,null,null,null,null,null,null,null,null,1684852.32,null,null,null,null,null,null,null,null,null,null,null,null,1684852.32,null,null,null,null,null,null,null,null,null,null,null,null,null,null,null,null,null,null,null,null,null,null,null,null,null,null,null,null,null,null,null,null,null,null,null,null,null,null,null,null,null,null,null,null,null,null,null,null,null,null,null,null,null,null,null,null,null,{"$f":"BY91","v":1684852.32}]
["Расходы по приобретению финансовых активов ",null,null,null,null,null,null,null,null,null,null,null,null,null,null,null,null,null,null,null,null,null,null,null,null,null,null,null,null,null,null,null,null,null,null,null,null,null,null,null,null,null,null,null,null,null,null,null,null,"270",null,null,null,null,null,"500"]
["из них:",null,null,null,null,null,null,null,null,null,null,null,null,null,null,null,null,null,null,null,null,null,null,null,null,null,null,null,null,null,null,null,null,null,null,null,null,null,null,null,null,null,null,null,null,null,null,null,null,"271",null,null,null,null,null,"520"]
["ценных бумаг, кроме акций"]
["акций и иных форм участия в капитале",null,null,null,null,null,null,null,null,null,null,null,null,null,null,null,null,null,null,null,null,null,null,null,null,null,null,null,null,null,null,null,null,null,null,null,null,null,null,null,null,null,null,null,null,null,null,null,null,"272",null,null,null,null,null,"530"]
["иных финансовых активов",null,null,null,null,null,null,null,null,null,null,null,null,null,null,null,null,null,null,null,null,null,null,null,null,null,null,null,null,null,null,null,null,null,null,null,null,null,null,null,null,null,null,null,null,null,null,null,null,"273",null,null,null,null,null,"550"]
[null,null,null,null,null,null,null,null,null,null,null,null,null,null,null,null,null,null,null,null,null,null,null,null,null,null,null,null,null,null,null,null,null,null,null,null,null,null,null,null,null,null,null,null,null,null,null,null,null,null,null,null,null,null,null,null,null,null,null,null,null,null,null,null,null,null,null,null,null,null,null,null,null,null,null,null,null,null,null,null,null,null,null,null,null,null,null,null,null,null,null,37134.230000000003]
["Результат исполнения (дефицит/профицит)",null,null,null,null,null,null,null,null,null,null,null,null,null,null,null,null,null,null,null,null,null,null,null,null,null,null,null,null,null,null,null,null,null,null,null,null,null,null,null,null,null,null,null,null,null,null,null,null,"450",null,null,null,null,null,"х",null,null,null,null,null,null,null,null,null,null,null,null,null,null,null,null,null,null,null,null,null,null,null,null,null,null,null,null,null,null,null,null,null,null,null,{"$f":"ED17-ED47","v":0},null,null,null,null,null,null,null,null,null,null,null,null,null,null,null,null,null,null,null,null,null,null,null,null,null,null,null,null,null,null,null,null,null,null,null,null,null,null,null,null,null,{"$f":"ED17-ED47","v":0},null,null,null,null,null,null,null,null,null,null,null,null,null,null,"х"]
[null,null,null,null,null,null,null,null,null,null,null,null,null,null,null,null,null,null,null,null,null,null,null,null,null,null,null,null,null,null,null,null,null,null,null,null,null,null,null,null,null,null,null,null,null,null,null,null,null,null,null,null,null,null,null,null,null,null,null,null,null,null,null,null,null,null,null,null,null,null,null,null,null,null,null,null,null,null,null,null,null,null,null,null,null,null,null,null,null,null,null,null,null,null,null,null,null,null,null,null,null,null,null,null,null,null,null,null,null,null,null,null,null,null,null,null,null,null,null,null,null,null,null,null,null,null,null,null,null,null,null,null,null,20381.259999999998]
[null,null,null,null,null,null,null,null,null,null,null,null,null,null,null,null,null,null,null,null,null,null,null,null,null,null,null,null,null,"3. Источники финансирования дефицита средств учреждения",null,null,null,null,null,null,null,null,null,null,null,null,null,null,null,null,null,null,null,null,null,null,null,null,null,null,null,null,null,null,null,null,null,null,null,null,null,null,null,null,null,null,null,null,null,null,null,null,null,null,null,null,null,null,null,null,null,null,null,null,null,null,null,null,null,null,null,null,null,null,null,null,null,null,null,null,null,null,null,null,null,null,null,null,null,null,null,null,null,null,null,null,null,null,null,null,null,null,null,null,null,null,null,null,null,null,null,null,null,null,null,null,null,null,null,null,null,null,null,null,null,null,null,null,null,null,null,null,null,null,null,null,null,"Форма 0503737 с. 4"]
[]
["Наименование показателя",null,null,null,null,null,null,null,null,null,null,null,null,null,null,null,null,null,null,null,null,null,null,null,null,null,null,null,null,null,null,null,null,null,null,null,null,null,null,null,null,null,null,null,null,null,null,null,null,"Код стро-ки",null,null,null,null,null,"Код анали-тики",null,null,null,null,null,null,"Утверждено плановых назначений",null,null,null,null,null,null,null,null,null,null,null,null,null,"Исполнено плановых назначений",null,null,null,null,null,null,null,null,null,null,null,null,null,null,null,null,null,null,null,null,null,null,null,null,null,null,null,null,null,null,null,null,null,null,null,null,null,null,null,null,null,null,null,null,null,null,null,null,null,null,null,null,null,null,null,null,null,null,null,null,null,null,null,null,null,null,null,null,null,null,null,"Не исполнено плановых назначений"]
[null,null,null,null,null,null,null,null,null,null,null,null,null,null,null,null,null,null,null,null,null,null,null,null,null,null,null,null,null,null,null,null,null,null,null,null,null,null,null,null,null,null,null,null,null,null,null,null,null,null,null,null,null,null,null,null,null,null,null,null,null,null,null,null,null,null,null,null,null,null,null,null,null,null,null,null,"через лицевые счета",null,null,null,null,null,null,null,null,null,null,null,null,null,null,"через банковские счета",null,null,null,null,null,null,null,null,null,null,null,null,null,null,null,"через кассу учреждения",null,null,null,null,null,null,null,null,null,null,null,null,"некассовыми операциями",null,null,null,null,null,null,null,null,null,null,null,null,"итого"]
[1,null,null,null,null,null,null,null,null,null,null,null,null,null,null,null,null,null,null,null,null,null,null,null,null,null,null,null,null,null,null,null,null,null,null,null,null,null,null,null,null,null,null,null,null,null,null,null,null,2,null,null,null,null,null,3,null,null,null,null,null,null,4,null,null,null,null,null,null,null,null,null,null,null,null,null,5,null,null,null,null,null,null,null,null,null,null,null,null,null,null,6,null,null,null,null,null,null,null,null,null,null,null,null,null,null,null,7,null,null,null,null,null,null,null,null,null,null,null,null,8,null,null,null,null,null,null,null,null,null,null,null,null,9,null,null,null,null,null,null,null,null,null,null,null,null,null,null,10]
["Источники финансирования дефицита средств - всего (стр. 520 + стр. 620 + стр. 700 + стр. 820 + стр. 830)",null,null,null,null,null,null,null,null,null,null,null,null,null,null,null,null,null,null,null,null,null,null,null,null,null,null,null,null,null,null,null,null,null,null,null,null,null,null,null,null,null,null,null,null,null,null,null,null,"500"]
["в том числе:",null,null,null,null,null,null,null,null,null,null,null,null,null,null,null,null,null,null,null,null,null,null,null,null,null,null,null,null,null,null,null,null,null,null,null,null,null,null,null,null,null,null,null,null,null,null,null,null,"520"]
["Внутренние источники "]
["из них:",null,null,null,null,null,null,null,null,null,null,null,null,null,null,null,null,null,null,null,null,null,null,null,null,null,null,null,null,null,null,null,null,null,null,null,null,null,null,null,null,null,null,null,null,null,null,null,null,"521",null,null,null,null,null,"171"]
["положительная курсовая разница"]
["отрицательная курсовая разница",null,null,null,null,null,null,null,null,null,null,null,null,null,null,null,null,null,null,null,null,null,null,null,null,null,null,null,null,null,null,null,null,null,null,null,null,null,null,null,null,null,null,null,null,null,null,null,null,"522",null,null,null,null,null,"171"]
["поступления средств учреждения с депозитов",null,null,null,null,null,null,null,null,null,null,null,null,null,null,null,null,null,null,null,null,null,null,null,null,null,null,null,null,null,null,null,null,null,null,null,null,null,null,null,null,null,null,null,null,null,null,null,null,"523",null,null,null,null,null,"510"]
["размещение средств учреждения на депозиты",null,null,null,null,null,null,null,null,null,null,null,null,null,null,null,null,null,null,null,null,null,null,null,null,null,null,null,null,null,null,null,null,null,null,null,null,null,null,null,null,null,null,null,null,null,null,null,null,"524",null,null,null,null,null,"610"]
["поступления от погашения займов (ссуд)",null,null,null,null,null,null,null,null,null,null,null,null,null,null,null,null,null,null,null,null,null,null,null,null,null,null,null,null,null,null,null,null,null,null,null,null,null,null,null,null,null,null,null,null,null,null,null,null,"525",null,null,null,null,null,"640"]
["выплаты по предоставлению займов (ссуд) ",null,null,null,null,null,null,null,null,null,null,null,null,null,null,null,null,null,null,null,null,null,null,null,null,null,null,null,null,null,null,null,null,null,null,null,null,null,null,null,null,null,null,null,null,null,null,null,null,"526",null,null,null,null,null,"540"]
["поступления заимствований от резидентов",null,null,null,null,null,null,null,null,null,null,null,null,null,null,null,null,null,null,null,null,null,null,null,null,null,null,null,null,null,null,null,null,null,null,null,null,null,null,null,null,null,null,null,null,null,null,null,null,"527",null,null,null,null,null,"710"]
["погашение заимствований от нерезидентов",null,null,null,null,null,null,null,null,null,null,null,null,null,null,null,null,null,null,null,null,null,null,null,null,null,null,null,null,null,null,null,null,null,null,null,null,null,null,null,null,null,null,null,null,null,null,null,null,"528",null,null,null,null,null,"810"]
["Внешние источники",null,null,null,null,null,null,null,null,null,null,null,null,null,null,null,null,null,null,null,null,null,null,null,null,null,null,null,null,null,null,null,null,null,null,null,null,null,null,null,null,null,null,null,null,null,null,null,null,"620"]
["из них:",null,null,null,null,null,null,null,null,null,null,null,null,null,null,null,null,null,null,null,null,null,null,null,null,null,null,null,null,null,null,null,null,null,null,null,null,null,null,null,null,null,null,null,null,null,null,null,null,"621",null,null,null,null,null,"171"]
["положительная курсовая разница"]
["отрицательная курсовая разница",null,null,null,null,null,null,null,null,null,null,null,null,null,null,null,null,null,null,null,null,null,null,null,null,null,null,null,null,null,null,null,null,null,null,null,null,null,null,null,null,null,null,null,null,null,null,null,null,"622",null,null,null,null,null,"171"]
["поступления заимствований от резидентов",null,null,null,null,null,null,null,null,null,null,null,null,null,null,null,null,null,null,null,null,null,null,null,null,null,null,null,null,null,null,null,null,null,null,null,null,null,null,null,null,null,null,null,null,null,null,null,null,"625",null,null,null,null,null,"720"]
["погашение заимствований от нерезидентов",null,null,null,null,null,null,null,null,null,null,null,null,null,null,null,null,null,null,null,null,null,null,null,null,null,null,null,null,null,null,null,null,null,null,null,null,null,null,null,null,null,null,null,null,null,null,null,null,"626",null,null,null,null,null,"820"]
["Изменение остатков средств",null,null,null,null,null,null,null,null,null,null,null,null,null,null,null,null,null,null,null,null,null,null,null,null,null,null,null,null,null,null,null,null,null,null,null,null,null,null,null,null,null,null,null,null,null,null,null,null,"700",null,null,null,null,null,"х"]
["увеличение остатков средств, всего",null,null,null,null,null,null,null,null,null,null,null,null,null,null,null,null,null,null,null,null,null,null,null,null,null,null,null,null,null,null,null,null,null,null,null,null,null,null,null,null,null,null,null,null,null,null,null,null,"710",null,null,null,null,null,"510",null,null,null,null,null,null,null,null,null,null,null,null,null,null,null,null,null,null,null,null,null,null,null,null,null,null,null,null,null,null,null,null,null,null,null,null,null,null,null,null,null,null,null,null,null,null,null,null,null,null,null,null,null,null,null,null,null,null,null,null,null,null,null,null,null,null,null,null,null,null,null,null,null,null,null,null,null,null,null,null,null,null,null,null,null,null,null,null,null,null,null,null,"х"]
["уменьшение остатков средств, всего",null,null,null,null,null,null,null,null,null,null,null,null,null,null,null,null,null,null,null,null,null,null,null,null,null,null,null,null,null,null,null,null,null,null,null,null,null,null,null,null,null,null,null,null,null,null,null,null,"720",null,null,null,null,null,"610",null,null,null,null,null,null,null,null,null,null,null,null,null,null,null,null,null,null,null,null,null,null,null,null,null,null,null,null,null,null,null,null,null,null,null,null,null,null,null,null,null,null,null,null,null,null,null,null,null,null,null,null,null,null,null,null,null,null,null,null,null,null,null,null,null,null,null,null,null,null,null,null,null,null,null,null,null,null,null,null,null,null,null,null,null,null,null,null,null,null,null,null,"х"]
["Изменение остатков по внутренним оборотам средств учреждения",null,null,null,null,null,null,null,null,null,null,null,null,null,null,null,null,null,null,null,null,null,null,null,null,null,null,null,null,null,null,null,null,null,null,null,null,null,null,null,null,null,null,null,null,null,null,null,null,"730",null,null,null,null,null,"х"]
["в том числе:",null,null,null,null,null,null,null,null,null,null,null,null,null,null,null,null,null,null,null,null,null,null,null,null,null,null,null,null,null,null,null,null,null,null,null,null,null,null,null,null,null,null,null,null,null,null,null,null,"731",null,null,null,null,null,"510"]
["увеличение остатков средств учреждения "]
["уменьшение остатков средств учреждения",null,null,null,null,null,null,null,null,null,null,null,null,null,null,null,null,null,null,null,null,null,null,null,null,null,null,null,null,null,null,null,null,null,null,null,null,null,null,null,null,null,null,null,null,null,null,null,null,"732",null,null,null,null,null,"610"]
[null,null,null,null,null,null,null,null,null,null,null,null,null,null,null,null,null,null,null,null,null,null,null,null,null,null,null,null,null,null,null,null,null,null,null,null,null,null,null,null,null,null,null,null,null,null,null,null,null,null,null,null,null,null,null,null,null,null,null,null,null,null,null,null,null,null,null,null,null,null,null,null,null,null,null,null,null,null,null,null,null,null,null,null,null,null,null,null,null,null,null,null,null,null,null,null,null,null,null,null,null,null,null,null,null,null,null,null,null,null,null,null,null,null,null,null,null,null,null,null,null,null,null,null,null,null,null,null,null,null,null,null,null,null,null,null,null,null,null,null,null,null,null,null,null,null,null,null,null,null,null,null,null,null,null,null,null,null,null,null,null,null,null,"Форма 0503737 с. 5"]
[]
["Наименование показателя",null,null,null,null,null,null,null,null,null,null,null,null,null,null,null,null,null,null,null,null,null,null,null,null,null,null,null,null,null,null,null,null,null,null,null,null,null,null,null,null,null,null,null,null,null,null,null,null,"Код стро-ки",null,null,null,null,null,"Код анали-тики",null,null,null,null,null,null,"Утверждено плановых назначений",null,null,null,null,null,null,null,null,null,null,null,null,null,"Исполнено плановых назначений",null,null,null,null,null,null,null,null,null,null,null,null,null,null,null,null,null,null,null,null,null,null,null,null,null,null,null,null,null,null,null,null,null,null,null,null,null,null,null,null,null,null,null,null,null,null,null,null,null,null,null,null,null,null,null,null,null,null,null,null,null,null,null,null,null,null,null,null,null,null,null,"Не исполнено плановых назначений"]
[null,null,null,null,null,null,null,null,null,null,null,null,null,null,null,null,null,null,null,null,null,null,null,null,null,null,null,null,null,null,null,null,null,null,null,null,null,null,null,null,null,null,null,null,null,null,null,null,null,null,null,null,null,null,null,null,null,null,null,null,null,null,null,null,null,null,null,null,null,null,null,null,null,null,null,null,"через лицевые счета",null,null,null,null,null,null,null,null,null,null,null,null,null,null,"через банковские счета",null,null,null,null,null,null,null,null,null,null,null,null,null,null,null,"через кассу учреждения",null,null,null,null,null,null,null,null,null,null,null,null,"некассовыми операциями",null,null,null,null,null,null,null,null,null,null,null,null,"итого"]
[1,null,null,null,null,null,null,null,null,null,null,null,null,null,null,null,null,null,null,null,null,null,null,null,null,null,null,null,null,null,null,null,null,null,null,null,null,null,null,null,null,null,null,null,null,null,null,null,null,2,null,null,null,null,null,3,null,null,null,null,null,null,4,null,null,null,null,null,null,null,null,null,null,null,null,null,5,null,null,null,null,null,null,null,null,null,null,null,null,null,null,6,null,null,null,null,null,null,null,null,null,null,null,null,null,null,null,7,null,null,null,null,null,null,null,null,null,null,null,null,8,null,null,null,null,null,null,null,null,null,null,null,null,9,null,null,null,null,null,null,null,null,null,null,null,null,null,null,10]
["Изменение остатков по внутренним расчетам ",null,null,null,null,null,null,null,null,null,null,null,null,null,null,null,null,null,null,null,null,null,null,null,null,null,null,null,null,null,null,null,null,null,null,null,null,null,null,null,null,null,null,null,null,null,null,null,null,"820",null,null,null,null,null,"х"]
["в том числе:",null,null,null,null,null,null,null,null,null,null,null,null,null,null,null,null,null,null,null,null,null,null,null,null,null,null,null,null,null,null,null,null,null,null,null,null,null,null,null,null,null,null,null,null,null,null,null,null,"821"]
["увеличение остатков по внутренним расчетам (Кт 030404510)"]
["уменьшение остатков по внутренним расчетам (Дт 030404610)",null,null,null,null,null,null,null,null,null,null,null,null,null,null,null,null,null,null,null,null,null,null,null,null,null,null,null,null,null,null,null,null,null,null,null,null,null,null,null,null,null,null,null,null,null,null,null,null,"822"]
["Изменение остатков расчетов по внутренним привлечениям средств ",null,null,null,null,null,null,null,null,null,null,null,null,null,null,null,null,null,null,null,null,null,null,null,null,null,null,null,null,null,null,null,null,null,null,null,null,null,null,null,null,null,null,null,null,null,null,null,null,"830",null,null,null,null,null,"х"]
["в том числе:",null,null,null,null,null,null,null,null,null,null,null,null,null,null,null,null,null,null,null,null,null,null,null,null,null,null,null,null,null,null,null,null,null,null,null,null,null,null,null,null,null,null,null,null,null,null,null,null,"831"]
["увеличение расчетов по внутреннему привлечению остатков средств (Кт 030406000)"]
["уменьшение расчетов по внутреннему привлечению остатков средств (Дт 030406000)",null,null,null,null,null,null,null,null,null,null,null,null,null,null,null,null,null,null,null,null,null,null,null,null,null,null,null,null,null,null,null,null,null,null,null,null,null,null,null,null,null,null,null,null,null,null,null,null,"832"]
[]
[]
["Руководитель",null,null,null,null,null,null,null,null,null,null,null,null,null,null,null,null,null,null,null,null,null,null,null,null,null,null,null,null,null,null,null,null,null,null,null,null,null,"Алехина С.В.",null,null,null,null,null,null,null,null,null,null,null,null,null,null,null,null,null,null,null,null,null,null,null,null,null,null,null,null,null,null,null,null,null,null,null,null,null,null,null,null,null,null,null,null,null,null,null,null,null,null,null,null,"Руководитель финансово-"]
[null,null,null,null,null,null,null,null,null,null,null,null,null,"(подпись)",null,null,null,null,null,null,null,null,null,null,null,null,null,null,null,null,null,null,null,null,null,null,null,null,"(расшифровка подписи)",null,null,null,null,null,null,null,null,null,null,null,null,null,null,null,null,null,null,null,null,null,null,null,null,null,null,null,null,null,null,null,null,null,null,null,null,null,null,null,null,null,null,null,null,null,null,null,null,null,null,null,null,"экономической службы"]
[null,null,null,null,null,null,null,null,null,null,null,null,null,null,null,null,null,null,null,null,null,null,null,null,null,null,null,null,null,null,null,null,null,null,null,null,null,null,null,null,null,null,null,null,null,null,null,null,null,null,null,null,null,null,null,null,null,null,null,null,null,null,null,null,null,null,null,null,null,null,null,null,null,null,null,null,null,null,null,null,null,null,null,null,null,null,null,null,null,null,null,null,null,null,null,null,null,null,null,null,null,null,null,null,null,null,null,null,null,null,null,null,null,null,"(подпись)",null,null,null,null,null,null,null,null,null,null,null,null,null,null,null,null,null,"(расшифровка подписи)"]
["Главный бухгалтер",null,null,null,null,null,null,null,null,null,null,null,null,null,null,null,null,null,null,null,null,null,null,null,null,null,null,null,null,null,null,null,null,null,null,null,null,null,"Тимошина Л.П."]
[null,null,null,null,null,null,null,null,null,null,null,null,null,null,null,null,null,"(подпись)",null,null,null,null,null,null,null,null,null,null,null,null,null,null,null,null,null,null,null,null,"(расшифровка подписи)"]
[]
[]
[null,null,null,null,null,null,null,null,null,null,null,null,null,null,null,null,null,null,null,null,null,null,null,null,null,null,null,null,null,null,null,null,null,null,null,null,null,null,null,null,null,null,null,null,null,null,null,null,null,null,null,null,null,null,null,null,null,null,null,null,null,null,null,null,"Централизованная бухгалтерия"]
[null,null,null,null,null,null,null,null,null,null,null,null,null,null,null,null,null,null,null,null,null,null,null,null,null,null,null,null,null,null,null,null,null,null,null,null,null,null,null,null,null,null,null,null,null,null,null,null,null,null,null,null,null,null,null,null,null,null,null,null,null,null,null,null,null,null,null,null,null,null,null,null,null,null,null,null,null,null,null,null,null,null,null,null,null,null,null,null,null,null,null,null,null,null,null,null,null,"(наименование, ОГРН, ИНН, КПП, местонахождение)"]
[null,null,null,null,null,null,null,null,null,null,null,null,null,null,null,null,null,null,null,null,null,null,null,null,null,null,null,null,null,null,null,null,null,null,null,null,null,null,null,null,null,null,null,null,null,null,null,null,null,null,null,null,null,null,null,null,null,null,null,null,null,null,null,null,"Руководитель"]
[null,null,null,null,null,null,null,null,null,null,null,null,null,null,null,null,null,null,null,null,null,null,null,null,null,null,null,null,null,null,null,null,null,null,null,null,null,null,null,null,null,null,null,null,null,null,null,null,null,null,null,null,null,null,null,null,null,null,null,null,null,null,null,null,"(уполномоченное лицо)"]
[null,null,null,null,null,null,null,null,null,null,null,null,null,null,null,null,null,null,null,null,null,null,null,null,null,null,null,null,null,null,null,null,null,null,null,null,null,null,null,null,null,null,null,null,null,null,null,null,null,null,null,null,null,null,null,null,null,null,null,null,null,null,null,null,null,null,null,null,null,null,null,null,null,null,null,null,null,null,null,null,null,null,null,null,null,null,"(должность)",null,null,null,null,null,null,null,null,null,null,null,null,null,null,null,null,null,null,null,null,null,null,null,null,null,null,null,null,"(подпись)",null,null,null,null,null,null,null,null,null,null,null,null,null,null,null,null,null,null,null,null,"(расшифровка подписи)"]
[]
["Исполнитель",null,null,null,null,null,null,null,null,null,null,null,null,"Главный бухгалтер",null,null,null,null,null,null,null,null,null,null,null,null,null,null,null,null,null,null,null,null,null,null,null,null,null,null,null,null,null,null,null,null,null,null,null,null,null,null,null,null,null,null,null,null,null,null,null,"Тимошина Л.П.",null,null,null,null,null,null,null,null,null,null,null,null,null,null,null,null,null,null,null,null,null,null,null,null,null,null,null,null,null,"2-13-03"]
[null,null,null,null,null,null,null,null,null,null,null,null,null,"(должность)",null,null,null,null,null,null,null,null,null,null,null,null,null,null,null,null,null,null,null,null,null,null,null,null,null,null,null,"(подпись)",null,null,null,null,null,null,null,null,null,null,null,null,null,null,null,null,null,null,null,"(расшифровка подписи)",null,null,null,null,null,null,null,null,null,null,null,null,null,null,null,null,null,null,null,null,null,null,null,null,null,null,null,null,null,"(телефон, e-mail)"]
[]
["\"",null,"11",null,null,"\"",null,null,"января",null,null,null,null,null,null,null,null,null,null,null,null,null,null,null,20,null,null,null,"16",null,null," г."]